fUSD/lending_fUSD_20250511
["ID","MTS","AMOUNT","RATE_DAILY","PERIOD"]
[360694957,1746933047758,-400.0,0.0001978,2]
[360694958,1746933047768,-400.0,0.0001978,2]
[360694959,1746933047777,-400.0,0.0001978,2]
[360694960,1746933047789,-400.0,0.0001978,2]
[360694961,1746933047798,-400.0,0.0001978,2]
[360694962,1746933047808,-400.0,0.0001978,2]
[360694963,1746933047818,-400.0,0.0001978,2]
[360694964,1746933047828,-402.47121411,0.0001978,2]
[360694965,1746933047839,-639.97,0.0001978,2]
[360694966,1746933047849,-400.0,0.0001978,2]
[360694967,1746933047858,-400.0,0.0001978,2]
[360694968,1746933047867,-400.0,0.0001978,2]
[360694969,1746933047876,-512.94,0.0001978,2]
[360694970,1746933047886,-400.0,0.0001978,2]
[360694971,1746933047895,-400.0,0.0001978,2]
[360694972,1746933047905,-400.0,0.0001978,2]
[360694973,1746933047914,-411.80199142,0.00019781,2]
[360694974,1746933047923,-408.25305521,0.00019781,2]
[360694975,1746933047935,-400.0,0.00019781,2]
[360694976,1746933047944,-400.0,0.00019781,2]
[360694977,1746933047953,-400.0,0.00019781,2]
[360694978,1746933047963,-159.33475058,0.0001979,2]
[360694979,1746933047972,-2753.05458361,0.00019793,2]
[360694980,1746933047981,-3057.9898802,0.00019795,2]
[360694981,1746933047991,-1000.0,0.000198,2]
[360694982,1746933048000,-181.14063789,0.00019826,2]
[360694983,1746933048010,-159.33475058,0.00019826,2]
[360694984,1746933048019,-2753.05458361,0.00019829,2]
[360694985,1746933048029,-3057.9898802,0.0001983,2]
[360694986,1746933048039,-324.94,0.00019863,2]
[360694987,1746933048048,-358.43,0.00019863,2]
[360694988,1746933048059,-452.28,0.00019863,2]
[360694989,1746933048068,-159.33475058,0.00019863,2]
[360694990,1746933048078,-2753.05458361,0.00019864,2]
[360694991,1746933048088,-12500.0,0.00019865,2]
[360694992,1746933048098,-3057.9898802,0.00019865,2]
[360694993,1746933048108,-500.0,0.00019873,2]
[360694994,1746933048119,-357.4349452,0.00019873,2]
[360694995,1746933048131,-142.5650548,0.00019873,2]
[360694996,1746933048141,-500.0,0.00019873,2]
[360694997,1746933048151,-309.33709877,0.00019873,2]
[360694998,1746933048160,-8009.13125014,0.00019874,2]
[360694999,1746933048291,-312.47675608,0.00019627,2]
[360695000,1746933048301,-210.43512847,0.00019627,2]
[360695001,1746933048318,-289.56487153,0.00019627,2]
[360695002,1746933048329,-202.37872367,0.00019627,2]
[360695003,1746933048351,-26.70868244,0.00019627,2]
[360695004,1746933048362,-274.69029273,0.00019627,2]
[360695005,1746933048371,-310.92048121,0.00019627,2]
[360695006,1746933048382,-400.0,0.0001968,2]
[360695007,1746933048392,-400.0,0.00019681,2]
[360695008,1746933048402,-411.35692683,0.00019779,2]
[360695009,1746933048411,-400.0,0.0001978,2]
[360695010,1746933048420,-4490.86874986,0.00019874,2]
[360695011,1746933048430,-12500.0,0.00019882,2]
[360695012,1746933048440,-225.0,0.00019885,2]
[360695013,1746933048449,-181.14063789,0.00019886,2]
[360695014,1746933048459,-169.80763347,0.00019888,2]
[360695015,1746933048468,-12500.0,0.00019891,2]
[360695016,1746933048478,-505.23276564,0.00019893,2]
[360695017,1746933048487,-179.84,0.00019898,2]
[360695018,1746933048497,-708.42,0.00019898,2]
[360695019,1746933048507,-400.0,0.00019898,2]
[360695020,1746933048516,-731.29,0.00019898,2]
[360695021,1746933048525,-400.0,0.00019898,2]
[360695022,1746933048536,-1306.44,0.00019898,2]
[360695023,1746933048546,-400.0,0.00019898,2]
[360695024,1746933048556,-400.0,0.00019898,2]
[360695025,1746933048565,-400.0,0.00019898,2]
[360695026,1746933048575,-1426.89,0.00019898,2]
[360695027,1746933048586,-400.0,0.00019898,2]
[360695028,1746933048597,-400.0,0.00019898,2]
[360695029,1746933048610,-400.0,0.00019898,2]
[360695030,1746933048620,-400.0,0.00019898,2]
[360695031,1746933048631,-400.0,0.00019898,2]
[360695032,1746933048642,-400.0,0.00019898,2]
[360695033,1746933048653,-536.69,0.00019898,2]
[360695034,1746933048663,-303.15,0.00019898,2]
[360695035,1746933048674,-447.78,0.00019898,2]
[360695036,1746933048688,-400.0,0.00019898,2]
[360695037,1746933048698,-400.0,0.00019898,2]
[360695038,1746933048708,-400.0,0.00019898,2]
[360695039,1746933048718,-400.0,0.00019898,2]
[360695040,1746933048730,-402.61,0.00019898,2]
[360695041,1746933048740,-400.0,0.00019898,2]
[360695042,1746933048751,-400.0,0.00019898,2]
[360695043,1746933048762,-400.0,0.00019898,2]
[360695044,1746933048773,-1753.05,0.00019898,2]
[360695045,1746933048784,-400.0,0.00019899,2]
[360695046,1746933048793,-400.0,0.00019899,2]
[360695047,1746933048804,-400.0,0.00019899,2]
[360695048,1746933048814,-400.0,0.00019899,2]
[360695049,1746933048824,-400.0,0.00019899,2]
[360695050,1746933048834,-259.83259264,0.00019899,2]
[360695051,1746933048844,-400.0,0.00019899,2]
[360695052,1746933048855,-400.0,0.00019899,2]
[360695053,1746933048865,-400.0,0.00019899,2]
[360695054,1746933048876,-315.64429308,0.00019899,2]
[360695055,1746933048885,-400.0,0.00019899,2]
[360695056,1746933048895,-400.0,0.00019899,2]
[360695057,1746933048904,-400.0,0.00019899,2]
[360695058,1746933048914,-400.0,0.00019899,2]
[360695059,1746933048924,-400.0,0.00019899,2]
[360695060,1746933048936,-400.0,0.00019899,2]
[360695061,1746933048946,-400.0,0.00019899,2]
[360695062,1746933048957,-400.0,0.00019899,2]
[360695063,1746933048968,-400.0,0.00019899,2]
[360695064,1746933048978,-400.0,0.00019899,2]
[360695065,1746933048988,-303.15046081,0.00019899,2]
[360695066,1746933048998,-480.26404852,0.00019899,2]
[360695067,1746933049009,-161.42755495,0.00019899,2]
[360695068,1746933049019,-400.0,0.00019899,2]
[360695069,1746933049029,-400.0,0.00019899,2]
[360695070,1746933049039,-400.0,0.00019899,2]
[360695071,1746933049048,-400.0,0.00019899,2]
[360695072,1746933049058,-400.0,0.00019899,2]
[360695073,1746933049067,-340.69326932,0.00019899,2]
[360695074,1746933049077,-400.0,0.00019899,2]
[360695075,1746933049087,-400.0,0.00019899,2]
[360695076,1746933049097,-400.0,0.00019899,2]
[360695077,1746933049108,-204.61706954,0.00019899,2]
[360695078,1746933049118,-400.0,0.00019899,2]
[360695079,1746933049128,-400.0,0.00019899,2]
[360695080,1746933049137,-400.0,0.00019899,2]
[360695081,1746933049147,-400.0,0.00019899,2]
[360695082,1746933049158,-400.0,0.00019899,2]
[360695083,1746933049168,-400.0,0.00019899,2]
[360695084,1746933049178,-464.47,0.00019899,2]
[360695085,1746933049188,-312.12,0.00019899,2]
[360695086,1746933049198,-400.0,0.00019899,2]
[360695087,1746933049208,-400.0,0.00019899,2]
[360695088,1746933049218,-400.0,0.00019899,2]
[360695089,1746933049228,-410.12554934,0.00019899,2]
[360695090,1746933049239,-400.0,0.00019899,2]
[360695091,1746933049249,-400.0,0.00019899,2]
[360695092,1746933049260,-400.0,0.00019899,2]
[360695093,1746933049270,-261.97241009,0.00019899,2]
[360695094,1746933049281,-400.0,0.00019899,2]
[360695095,1746933049290,-400.0,0.00019899,2]
[360695096,1746933049300,-400.0,0.00019899,2]
[360695097,1746933049311,-155.23450164,0.00019899,2]
[360695098,1746933049322,-400.0,0.00019899,2]
[360695099,1746933049331,-409.8625109,0.00019899,2]
[360695100,1746933049344,-400.0,0.00019899,2]
[360695101,1746933049354,-400.0,0.00019899,2]
[360695102,1746933049365,-432.91,0.00019899,2]
[360695103,1746933049374,-400.0,0.00019899,2]
[360695104,1746933049385,-465.14,0.00019899,2]
[360695105,1746933049395,-308.92635957,0.00019899,2]
[360695106,1746933049406,-400.0,0.00019899,2]
[360695107,1746933049416,-400.0,0.00019899,2]
[360695108,1746933049427,-400.0,0.00019899,2]
[360695109,1746933049438,-486.0,0.00019899,2]
[360695110,1746933049448,-410.49136705,0.00019899,2]
[360695111,1746933049458,-400.0,0.00019899,2]
[360695112,1746933049468,-400.0,0.00019899,2]
[360695113,1746933049478,-400.0,0.00019899,2]
[360695114,1746933049488,-400.0,0.00019899,2]
[360695115,1746933049497,-267.30945323,0.00019899,2]
[360695116,1746933049507,-521.17,0.00019899,2]
[360695117,1746933049517,-400.0,0.00019899,2]
[360695118,1746933049527,-493.14371665,0.00019899,2]
[360695119,1746933049538,-400.0,0.00019899,2]
[360695120,1746933049548,-408.04343269,0.00019899,2]
[360695121,1746933049558,-405.22331827,0.00019899,2]
[360695122,1746933049567,-263.90653436,0.00019899,2]
[360695123,1746933049577,-400.0,0.00019899,2]
[360695124,1746933049587,-400.0,0.00019899,2]
[360695125,1746933049597,-400.0,0.00019899,2]
[360695126,1746933049610,-349.41319124,0.00019899,2]
[360695127,1746933049619,-400.0,0.00019899,2]
[360695128,1746933049629,-400.0,0.00019899,2]
[360695129,1746933049640,-400.0,0.00019899,2]
[360695130,1746933049651,-400.0,0.00019899,2]
[360695131,1746933049660,-400.0,0.00019899,2]
[360695132,1746933049670,-400.0,0.00019899,2]
[360695133,1746933049681,-400.0,0.00019899,2]
[360695134,1746933049691,-491.78,0.00019899,2]
[360695135,1746933049701,-400.0,0.00019899,2]
[360695136,1746933049711,-400.0,0.00019899,2]
[360695137,1746933049721,-400.0,0.00019899,2]
[360695138,1746933049730,-402.98545202,0.00019899,2]
[360695139,1746933049740,-400.0,0.00019899,2]
[360695140,1746933049750,-400.0,0.00019899,2]
[360695141,1746933049760,-403.95810399,0.00019899,2]
[360695142,1746933049770,-400.0,0.00019899,2]
[360695143,1746933049779,-411.24,0.00019899,2]
[360695144,1746933049789,-241.55,0.00019899,2]
[360695145,1746933049799,-154.27685645,0.00019899,2]
[360695146,1746933049809,-170.88250228,0.00019899,2]
[360695147,1746933049818,-400.0,0.00019899,2]
[360695148,1746933049828,-400.0,0.00019899,2]
[360695149,1746933049837,-400.0,0.00019899,2]
[360695150,1746933049846,-400.0,0.00019899,2]
[360695151,1746933049856,-400.0,0.00019899,2]
[360695152,1746933049866,-400.0,0.00019899,2]
[360695153,1746933049875,-162.39685525,0.00019899,2]
[360695154,1746933049886,-374.86484731,0.00019899,2]
[360695155,1746933049895,-317.08,0.00019899,2]
[360695156,1746933049905,-400.0,0.00019899,2]
[360695157,1746933049914,-203.93197375,0.00019899,2]
[360695158,1746933049923,-400.0,0.00019899,2]
[360695159,1746933049934,-411.61,0.00019899,2]
[360695160,1746933049944,-400.0,0.00019899,2]
[360695161,1746933049954,-266.91,0.00019899,2]
[360695162,1746933049963,-400.0,0.00019899,2]
[360695163,1746933049972,-246.8227624,0.00019899,2]
[360695164,1746933049982,-400.0,0.00019899,2]
[360695165,1746933049991,-400.0,0.00019899,2]
[360695166,1746933050001,-437.67788653,0.00019899,2]
[360695167,1746933050011,-241.02188542,0.00019899,2]
[360695168,1746933050020,-317.4939183,0.00019899,2]
[360695169,1746933050030,-400.0,0.00019899,2]
[360695170,1746933050039,-400.0,0.00019899,2]
[360695171,1746933050049,-400.0,0.00019899,2]
[360695172,1746933050059,-400.0,0.00019899,2]
[360695173,1746933050068,-400.0,0.00019899,2]
[360695174,1746933050078,-400.0,0.00019899,2]
[360695175,1746933050087,-416.2925429,0.00019899,2]
[360695176,1746933050098,-400.0,0.00019899,2]
[360695177,1746933050109,-410.34185449,0.00019899,2]
[360695178,1746933050118,-383.18593792,0.00019899,2]
[360695179,1746933050128,-475.61120329,0.00019899,2]
[360695180,1746933050139,-415.53,0.00019899,2]
[360695181,1746933050149,-363.2306832,0.00019899,2]
[360695182,1746933050159,-231.04778277,0.00019899,2]
[360695183,1746933050168,-396.68,0.00019899,2]
[360695184,1746933050178,-400.0,0.00019899,2]
[360695185,1746933050191,-400.0,0.00019899,2]
[360695186,1746933050201,-400.0,0.00019899,2]
[360695187,1746933050211,-400.0,0.00019899,2]
[360695188,1746933050221,-400.0,0.00019899,2]
[360695189,1746933050231,-500.0,0.00019899,2]
[360695190,1746933050240,-400.0,0.00019899,2]
[360695191,1746933050250,-404.76199965,0.00019899,2]
[360695192,1746933050260,-373.8722471,0.00019899,2]
[360695193,1746933050271,-400.0,0.00019899,2]
[360695194,1746933050281,-400.0,0.00019899,2]
[360695195,1746933050291,-400.0,0.00019899,2]
[360695196,1746933050300,-400.0,0.00019899,2]
[360695197,1746933050311,-400.0,0.00019899,2]
[360695198,1746933050320,-154.3175913,0.000199,2]
[360695199,1746933050330,-5499.93897336,0.000199,2]
[360695200,1746933050340,-1936.78196446,0.000199,2]
[360695201,1746933050349,-12500.0,0.000199,2]
[360695202,1746933050359,-1980.06,0.000199,2]
[360695203,1746933050369,-2753.05458361,0.000199,2]
[360695204,1746933050379,-159.33475058,0.000199,2]
[360695205,1746933050388,-47412.64698243,0.000199,2]
[360695206,1746933050398,-3057.9898802,0.000199,2]
[360695207,1746933050408,-3273.39148594,0.000199,2]
[360695208,1746933050418,-203.72522996,0.000199,3]
[360695209,1746933050428,-1910.0,0.000199,2]
[360695210,1746933050440,-12700.54099741,0.000199,2]
[360695211,1746933050450,-287.31770322,0.000199,2]
[360695212,1746933050460,-768.51492435,0.000199,2]
[360695213,1746933050470,-38194.37637382,0.000199,2]
[360695214,1746933050479,-777.0,0.00019973,2]
[360695215,1746933050489,-349.0,0.00019973,2]
[360695216,1746933050500,-491.09197973,0.00019973,2]
[360695217,1746933050509,-211.06504258,0.00019973,2]
[360695218,1746933050518,-500.0,0.00019973,2]
[360695219,1746933050528,-150.0,0.00019973,2]
[360695220,1746933050538,-500.0,0.00019973,2]
[360695221,1746933050548,-203.56154639,0.00019973,2]
[360695222,1746933050558,-2446.567,0.00019984,2]
[360695223,1746933050567,-400.0,0.00019984,2]
[360695224,1746933050577,-400.0,0.00019984,2]
[360695225,1746933050587,-400.0,0.00019984,2]
[360695226,1746933050600,-400.0,0.00019984,2]
[360695227,1746933050611,-400.0,0.00019984,2]
[360695228,1746933050620,-400.0,0.00019984,2]
[360695229,1746933050631,-400.0,0.00019984,2]
[360695230,1746933050642,-417.99669882,0.00019984,2]
[360695231,1746933050654,-400.0,0.00019984,2]
[360695232,1746933050664,-400.0,0.00019984,2]
[360695233,1746933050675,-400.0,0.00019984,2]
[360695234,1746933050686,-400.0,0.00019984,2]
[360695235,1746933050696,-400.0,0.00019984,2]
[360695236,1746933050706,-519.48,0.00019984,2]
[360695237,1746933050717,-400.0,0.00019984,2]
[360695238,1746933050729,-162.82,0.00019984,2]
[360695239,1746933050739,-400.0,0.00019984,2]
[360695240,1746933050750,-400.0,0.00019984,2]
[360695241,1746933050760,-3663.25,0.00019984,2]
[360695242,1746933050770,-400.0,0.00019984,2]
[360695243,1746933050779,-400.0,0.00019984,2]
[360695244,1746933050788,-487.02,0.00019984,2]
[360695245,1746933050799,-400.0,0.00019984,2]
[360695246,1746933050808,-400.0,0.00019984,2]
[360695247,1746933050818,-192.68,0.00019984,2]
[360695248,1746933050828,-400.0,0.00019984,2]
[360695249,1746933050839,-400.0,0.00019984,2]
[360695250,1746933050850,-400.0,0.00019984,2]
[360695251,1746933050862,-639.97,0.00019984,2]
[360695252,1746933050872,-400.0,0.00019984,2]
[360695253,1746933051040,-530.04,0.00019984,2]
[360695254,1746933051050,-400.0,0.00019984,2]
[360695255,1746933051060,-478.54157459,0.00019984,2]
[360695256,1746933051069,-154.07,0.00019984,2]
[360695257,1746933051079,-400.0,0.00019984,2]
[360695258,1746933051088,-369.89578617,0.00019985,2]
[360695259,1746933051098,-401.38802093,0.00019985,2]
[360695260,1746933051108,-400.0,0.00019985,2]
[360695261,1746933051118,-494.52061501,0.00019985,2]
[360695262,1746933051127,-400.0,0.00019985,2]
[360695263,1746933051136,-400.0,0.00019985,2]
[360695264,1746933051145,-400.0,0.00019985,2]
[360695265,1746933051155,-304.74519313,0.00019985,2]
[360695266,1746933051164,-400.0,0.00019985,2]
[360695267,1746933051173,-254.04390746,0.00019985,2]
[360695268,1746933051182,-400.0,0.00019985,2]
[360695269,1746933051192,-400.0,0.00019985,2]
[360695270,1746933051202,-400.0,0.00019985,2]
[360695271,1746933051211,-285.71060262,0.00019985,2]
[360695272,1746933051221,-400.0,0.00019985,2]
[360695273,1746933051231,-380.0,0.00019985,2]
[360695274,1746933051240,-454.98222305,0.00019985,2]
[360695275,1746933051250,-400.0,0.00019985,2]
[360695276,1746933051260,-400.0,0.00019985,2]
[360695277,1746933051269,-414.06,0.00019985,2]
[360695278,1746933051279,-400.0,0.00019985,2]
[360695279,1746933051288,-473.47,0.00019985,2]
[360695280,1746933051298,-400.0,0.00019985,2]
[360695281,1746933051307,-400.0,0.00019985,2]
[360695282,1746933051316,-400.0,0.00019985,2]
[360695283,1746933051325,-512.79067475,0.00019985,2]
[360695284,1746933051335,-400.0,0.00019985,2]
[360695285,1746933051344,-274.10553176,0.00019985,2]
[360695286,1746933051354,-326.64392026,0.00019985,2]
[360695287,1746933051363,-518.21,0.00019985,2]
[360695288,1746933051372,-222.82941544,0.00019985,2]
[360695289,1746933051382,-244.36766219,0.00019985,2]
[360695290,1746933051391,-400.0,0.00019985,2]
[360695291,1746933051401,-400.0,0.00019985,2]
[360695292,1746933051410,-212.42296568,0.00019985,2]
[360695293,1746933051419,-400.0,0.00019985,2]
[360695294,1746933051429,-400.0,0.00019985,2]
[360695295,1746933051440,-400.0,0.00019985,2]
[360695296,1746933051449,-400.0,0.00019985,2]
[360695297,1746933051459,-400.0,0.00019985,2]
[360695298,1746933051469,-400.0,0.00019985,2]
[360695299,1746933051478,-400.0,0.00019985,2]
[360695300,1746933051488,-521.17,0.00019985,2]
[360695301,1746933051497,-400.0,0.00019985,2]
[360695302,1746933051506,-400.0,0.00019985,2]
[360695303,1746933051515,-152.98827802,0.00019985,2]
[360695304,1746933051524,-400.0,0.00019985,2]
[360695305,1746933051534,-400.0,0.00019985,2]
[360695306,1746933051543,-400.0,0.00019985,2]
[360695307,1746933051552,-400.0,0.00019985,2]
[360695308,1746933051562,-400.0,0.00019985,2]
[360695309,1746933051571,-491.78,0.00019985,2]
[360695310,1746933051580,-186.11,0.00019985,2]
[360695311,1746933051590,-266.96322458,0.00019985,2]
[360695312,1746933051603,-400.0,0.00019985,2]
[360695313,1746933051613,-400.0,0.00019985,2]
[360695314,1746933051622,-400.0,0.00019985,2]
[360695315,1746933051631,-400.0,0.00019985,2]
[360695316,1746933051641,-400.0,0.00019985,2]
[360695317,1746933051651,-355.96306038,0.00019985,2]
[360695318,1746933051660,-400.0,0.00019985,2]
[360695319,1746933051669,-400.0,0.00019985,2]
[360695320,1746933051680,-523.84214621,0.00019985,2]
[360695321,1746933051691,-341.42,0.00019985,2]
[360695322,1746933051700,-708.42,0.00019985,2]
[360695323,1746933051710,-3663.25,0.00019985,2]
[360695324,1746933051720,-520.5685883,0.00019985,2]
[360695325,1746933051729,-731.29,0.00019985,2]
[360695326,1746933051738,-400.0,0.00019985,2]
[360695327,1746933051747,-400.0,0.00019985,2]
[360695328,1746933051757,-1306.44,0.00019985,2]
[360695329,1746933051767,-234.31988473,0.00019985,2]
[360695330,1746933051776,-243.16,0.00019985,2]
[360695331,1746933051785,-400.0,0.00019985,2]
[360695332,1746933051794,-461.14,0.00019985,2]
[360695333,1746933051804,-1426.89,0.00019985,2]
[360695334,1746933051814,-400.0,0.00019985,2]
[360695335,1746933051823,-400.0,0.00019985,2]
[360695336,1746933051832,-400.0,0.00019985,2]
[360695337,1746933051841,-400.0,0.00019985,2]
[360695338,1746933051850,-223.76,0.00019985,2]
[360695339,1746933051859,-304.0,0.00019985,2]
[360695340,1746933051869,-400.0,0.00019985,2]
[360695341,1746933051878,-400.0,0.00019985,2]
[360695342,1746933051887,-639.97,0.00019985,2]
[360695343,1746933051896,-400.0,0.00019985,2]
[360695344,1746933051905,-400.0,0.00019985,2]
[360695345,1746933051914,-400.0,0.00019985,2]
[360695346,1746933051923,-400.0,0.00019985,2]
[360695347,1746933051933,-400.0,0.00019985,2]
[360695348,1746933051943,-400.0,0.00019985,2]
[360695349,1746933051952,-402.61,0.00019985,2]
[360695350,1746933051961,-400.0,0.00019985,2]
[360695351,1746933051970,-400.0,0.00019985,2]
[360695352,1746933051979,-400.0,0.00019985,2]
[360695353,1746933051989,-400.0,0.00019985,2]
[360695354,1746933051998,-400.0,0.00019985,2]
[360695355,1746933052007,-400.0,0.00019985,2]
[360695356,1746933052016,-1753.05,0.00019985,2]
[360695357,1746933052025,-186.62,0.00019985,2]
[360695358,1746933052035,-581.0,0.00019986,2]
[360695359,1746933052044,-1657.9681735,0.00019986,2]
[360695360,1746933052053,-1538.2746515,0.00019986,2]
[360695361,1746933052062,-1418.5811295,0.00019986,2]
[360695362,1746933052071,-1298.8876075,0.00019986,2]
[360695363,1746933052080,-1179.1940854,0.00019986,2]
[360695364,1746933052090,-53013.4703182,0.00019986,2]
[360695365,1746933052100,-49186.2744299,0.00019986,2]
[360695366,1746933052109,-3418.73590527,0.00019986,2]
[360695367,1746933052258,-41940.34263633,0.00019986,2]
[360695368,1746933052268,-36009.16175518,0.00019986,2]
[360695369,1746933052612,206.95446786,5.479e-05,30]
[360695370,1746933052645,-500.0,0.00019627,2]
[360695371,1746933052655,-262.23104121,0.00019627,2]
[360695372,1746933052666,-237.76895879,0.00019627,2]
[360695373,1746933052676,-500.0,0.00019627,2]
[360695374,1746933052686,-410.93628352,0.00019627,2]
[360695375,1746933052695,-500.0,0.00019627,2]
[360695376,1746933052704,-500.0,0.00019627,2]
[360695377,1746933052714,-500.0,0.00019627,2]
[360695378,1746933052724,-500.0,0.00019627,2]
[360695379,1746933052734,-500.0,0.00019627,2]
[360695380,1746933052743,-500.0,0.00019627,2]
[360695381,1746933052752,-403.04665345,0.0001968,2]
[360695382,1746933052761,-158.53,0.0001968,2]
[360695383,1746933052771,-3603.07120401,0.00019986,2]
[360695384,1746933052788,-1919.64969411,0.00019986,2]
[360695385,1746933052797,-14750.07719322,0.00019986,2]
[360695386,1746933052809,-22954.60957178,0.00019986,2]
[360695387,1746933052820,-219.91690851,0.00019988,2]
[360695388,1746933052830,-400.0,0.00019988,2]
[360695389,1746933052839,-400.0,0.00019988,2]
[360695390,1746933052849,-318.6957819,0.00019988,2]
[360695391,1746933052858,-400.0,0.00019988,2]
[360695392,1746933052868,-401.32433389,0.00019988,2]
[360695393,1746933052878,-360.21992376,0.00019988,2]
[360695394,1746933052888,-401.13638877,0.00019988,2]
[360695395,1746933052897,-349.66468251,0.00019988,2]
[360695396,1746933052907,-400.0,0.00019988,2]
[360695397,1746933052916,-402.94689321,0.00019988,2]
[360695398,1746933052926,-254.76075279,0.00019988,2]
[360695399,1746933052935,-400.0,0.00019988,2]
[360695400,1746933052945,-287.31680264,0.00019988,2]
[360695401,1746933052954,-2239.03182221,0.0001999,2]
[360695402,1746933052963,-480.12,0.00019995,2]
[360695403,1746933052973,-405.45911131,0.00019995,2]
[360695404,1746933052983,-72614.79702672,0.00019995,2]
[360695405,1746933052995,-312529.37309116,0.00019995,2]
[360695406,1746933053007,-1188.40622885,0.00019995,2]
[360695407,1746933053019,-311.85,0.00019995,2]
[360695408,1746933053056,157.59772339,5.753e-05,30]
[360695409,1746933053069,-1290.26,0.00019995,2]
[360695410,1746933053197,-400.0,0.0001968,2]
[360695411,1746933053206,-16113.43151165,0.00019995,2]
[360695412,1746933053219,-7279.560215,0.00019995,2]
[360695413,1746933053231,-301.6944141,0.00019995,2]
[360695414,1746933053242,-563.9,0.00019995,2]
[360695415,1746933053278,155.12988617,6.041e-05,30]
[360695416,1746933053330,155.00649431,6.343e-05,30]
[360695417,1746933053374,155.00032472,6.66e-05,30]
[360695418,1746933134884,2528.47,0.00030137,120]
[360695419,1746933153855,525.0,0.0003,120]
[360695420,1746933162765,217.65,0.00013699,2]
[360695421,1746933377386,197.9,0.0002806,120]
[360695422,1746933519022,150.0,0.000185,5]
[360695423,1746933951955,809.54,0.00016617,2]
[360695424,1746934018566,221.92,0.00014656,2]
[360695425,1746934027164,250.0,0.00017,2]
[360695426,1746934046131,-765.514893,0.00018312,2]
[360695427,1746934046150,-216.41,0.00018404,2]
[360695428,1746934046170,-141.3928816,0.00018428,2]
[360695444,1746934209089,-1200.0,0.00018355,2]
[360695445,1746934209114,-13372.53,0.00018356,2]
[360695446,1746934209140,-15.28510087,0.00018428,2]
[360695447,1746934209165,-1000.0,0.00018444,2]
[360695448,1746934209190,-2053.63,0.00018529,2]
[360695449,1746934209215,-200.0,0.00018551,2]
[360695450,1746934209240,-4670.76,0.00018626,2]
[360695451,1746934209265,-300.0,0.00018636,2]
[360695452,1746934209288,-5160.45972631,0.00018637,2]
[360695453,1746934209321,-509.36232587,0.00018646,2]
[360695454,1746934209353,-509.36232587,0.00018646,2]
[360695455,1746934209384,-509.36232587,0.00018646,2]
[360695456,1746934209415,-509.36232587,0.00018646,2]
[360695457,1746934209450,-509.36232587,0.00018646,2]
[360695458,1746934209481,-509.36232587,0.00018646,2]
[360695459,1746934209513,-509.36232587,0.00018646,2]
[360695460,1746934209545,-509.36232587,0.00018646,2]
[360695461,1746934209577,-509.36232587,0.00018646,2]
[360695462,1746934209608,-509.36232587,0.00018646,2]
[360695463,1746934209641,-509.36232587,0.00018646,2]
[360695464,1746934209671,-509.36232587,0.00018646,2]
[360695465,1746934209704,-509.36232587,0.00018646,2]
[360695466,1746934209733,-509.36232587,0.00018646,2]
[360695467,1746934209762,-509.36232587,0.00018646,2]
[360695468,1746934209793,-509.36232587,0.00018646,2]
[360695469,1746934209824,-509.36232587,0.00018646,2]
[360695470,1746934209856,-509.36232587,0.00018646,2]
[360695471,1746934209885,-509.36232587,0.00018646,2]